[Event "German-ch Blitz Women 2022"]
[Site "Magdeburg"]
[Date "2022.08.13"]
[Round "9.9"]
[White "Melamed, Tatjana"]
[Black "Grabowski, Petra"]
[Result "1-0"]
[ECO "C10"]
[WhiteElo "2380"]
[BlackElo "1643"]
[Annotator "TA"]
[PlyCount "43"]
[EventDate "2022.08.10"]
[EventType "tourn"]
[EventCountry "GER"]
[SourceTitle "playchess.com"]
[Source "ChessBase"]
[SourceQuality "1"]
[TimeControl "180+2"]

{[%evp 22,43,50,55,268,281,420,453,502,512,512,512,502,496,504,468,512,510,567,469,563,540,917,902]} 1. e4 {[%emt 0:00:01]} e6 {[%emt 0:00:01]} 2. d4 {[%emt 0:00:01]} d5 {[%emt 0:00:01]} 3. Nd2 {[%emt 0:00:01]} dxe4 {[%emt 0:00:02]} 4. Nxe4 {[%emt 0:00:02]} Nd7 {[%emt 0:00:01]} 5. Bd3 {[%emt 0:00:04]} Ngf6 {[%emt 0:00:02]} 6. Qe2 {[%emt 0:00:02]} Be7 {[%emt 0:00:15]} 7. Nf3 {[%emt 0:00:02]} O-O {[%emt 0:00:04]} 8. O-O {[%emt 0:00:02]} Nxe4 {[%emt 0:00:04]} 9. Bxe4 {[%emt 0:00:02]} Nf6 {[%emt 0:00:03]} 10. Bd3 {[%emt 0:00:01]} c5 {[%emt 0:00:03]} 11. dxc5 {[%emt 0:00:05]} Bxc5 {[%emt 0:00:02]} 12. Bg5 {[%emt 0:00:02]} Bd7 $2 {[%emt 0:00:10] [#] C10: French with 3 Nc3: Unusual Black 3rd moves and 3...dxe4.} (12... h6 $14 13. Bh4 Qc7) 13. Ne5 $18 {[%emt 0:00:09] [#]} Rc8 $146 {[%emt 0:00:29]} (13... Be7 {was worth a try.} 14. Rad1 Nd5) ({Predecessor:} 13... Be7 14. Rad1 Nd5 15. Bxe7 Qxe7 16. Nxd7 Qxd7 17. c4 Nf4 18. Bxh7+ Kxh7 19. Qc2+ Nd3 20. Rxd3 {1-0 (20) Kitschke,H (2022)-Millgramm,S (1785) Eckernfoerde 2016}) 14. Rad1 {[%emt 0:00:12]} Be7 {[%emt 0:00:08] White is clearly winning.} 15. Bxf6 {[%emt 0:00:07]} Bxf6 {[%emt 0:00:20]} 16. Nxd7 {[%emt 0:00:01]} Re8 {[%emt 0:00:11]} 17. Nxf6+ {[%emt 0:00:12]} Qxf6 {[%emt 0:00:02]} 18. c3 {[%emt 0:00:01]} a6 {[%emt 0:00:05]} 19. Be4 {[%emt 0:00:09]} b5 {[%emt 0:00:03]} 20. h3 {[%emt 0:00:02]} Rc5 {[%emt 0:00:18]} 21. Qe3 {[%emt 0:00:09]} Qh4 {[%emt 0:00:20]} 22. Qxc5 {[%emt 0:00:09] White took control after the opening.  Weighted Error Value: White=0.14 (very precise) /Black=0.98} 1-0

[Event "German-ch Blitz Women 2022"]
[Site "Magdeburg"]
[Date "2022.08.13"]
[Round "9.10"]
[White "Schulze, Lara"]
[Black "Khrapko, Marharyta"]
[Result "0-1"]
[ECO "B30"]
[WhiteElo "2292"]
[BlackElo "2128"]
[Annotator "TA"]
[PlyCount "56"]
[EventDate "2022.08.10"]
[EventType "tourn"]
[EventCountry "GER"]
[SourceTitle "playchess.com"]
[Source "ChessBase"]
[SourceQuality "1"]
[TimeControl "180+2"]

{[%evp 9,55,57,81,55,52,44,62,39,45,38,50,43,44,35,49,47,45,55,116,110,91,91,117,91,132,120,131,78,63,14,35,30,109,37,74,0,0,-500,-372,-1345,-1314,-29993,-2343,-29995,-29996,-29999,-29999,-29999]} 1. e4 {[%emt 0:00:01]} c5 {[%emt 0:00:01]} 2. Nf3 {[%emt 0:00:01]} Nc6 {[%emt 0:00:01]} 3. Bb5 {[%emt 0:00:01]} Nd4 {[%emt 0:00:01]} 4. Nxd4 {[%emt 0:00:06]} cxd4 {[%emt 0:00:01]} 5. c3 {[%emt 0:00:04]} dxc3 {[%emt 0:00:05]} 6. bxc3 {[%emt 0:00:02] B30: Sicilian: 2...Nc6 3 Bb5, lines without ...g6.} a6 {[%emt 0:00:03]} 7. Be2 {[%emt 0:00:05] [#]} e6 $146 {[%emt 0:00:05]} ({Predecessor:} 7... g6 8. d4 Bg7 9. O-O d6 10. a4 Nf6 11. Bf3 O-O 12. Be3 Nd7 13. Na3 e5 {0-1 (39) Mezhevov,V (2013)-Levchenko,E (2173) Khanty-Mansiysk 2011}) 8. d4 {[%emt 0:00:12] White is slightly better.} d5 {[%emt 0:00:07]} 9. e5 {[%emt 0:00:01]} Bd7 {[%emt 0:00:41]} 10. Qb3 {[%emt 0:00:21]} Qc7 {[%emt 0:00:16]} 11. O-O {[%emt 0:00:04]} Rc8 {[%emt 0:00:09]} 12. a4 {[%emt 0:00:19][%cal Ba2a4,Ba4a5][%mdl 32]} Ne7 {[%emt 0:00:42]} 13. Ba3 {[%emt 0:00:11]} h5 {[%emt 0:00:13]} (13... Nc6 $14) 14. Bd6 $16 {[%emt 0:00:25]} Qc6 {[%emt 0:00:00]} 15. a5 {[%emt 0:00:46]} g6 {[%emt 0:00:06]} 16. Bd3 {[%emt 0:00:06]} h4 {[%emt 0:00:17]} 17. h3 {[%emt 0:00:02]} Bh6 {[%emt 0:00:06]} 18. Bxe7 {[%emt 0:00:11]} (18. Qb2 $142) 18... Kxe7 {[%emt 0:00:01]} 19. f4 {[%emt 0:00:19]} (19. Qd1 $14 {is more appropriate.}) 19... g5 {[%emt 0:00:08]} 20. f5 {[%emt 0:00:02]} g4 {[%emt 0:00:03]} (20... exf5 $1 $11 21. Bxf5 g4) 21. Qb4+ {[%emt 0:00:04]} ({Of course not} 21. fxe6 $6 Bxe6 22. Qb4+ Kd7 $11) (21. f6+ $16 Kd8 22. hxg4) 21... Ke8 {[%emt 0:00:01] [#] ...exf5 is the strong threat.} 22. fxe6 {[%emt 0:00:04]} (22. hxg4 $16 Rc7 23. Rf3 (23. f6 Kd8 $16)) 22... Bxe6 {[%emt 0:00:04]} 23. Bf5 $2 {[%emt 0:00:02][%mdl 8192]} (23. Bc2 $11 {and White has nothing to worry.} Qc7 24. hxg4) 23... gxh3 {[%emt 0:00:03]} 24. gxh3 $2 {[%emt 0:00:02]} (24. Ra2 Be3+ 25. Kh2 Bxf5 26. Rxf5) 24... Bxf5 {[%emt 0:00:04]} 25. Kh2 {[%emt 0:00:08]} Be4 {[%emt 0:00:04]} (25... Qg6 $142 26. Qa4+ Kd8 27. Qd7+ Bxd7 28. Kh1 Qg3 29. Rxf7 Qxh3+ 30. Kg1 Be3+ 31. Rf2 Rg8#) 26. Na3 {[%emt 0:00:03]} Qg6 {[%emt 0:00:02][%csl Ge4][%cal Rg6g2] Black mates.} 27. Rf2 {[%emt 0:00:02] [#]} Bf4+ $1 {[%emt 0:00:02][%mdl 512]} 28. Rxf4 {[%emt 0:00:01]} Qg2# {[%emt 0:00:01] Weighted Error Value: White=1.34/Black=0.60} 0-1

[Event "German-ch Blitz Women 2022"]
[Site "Magdeburg"]
[Date "2022.08.13"]
[Round "9.11"]
[White "Nikolaeva, Mariya A"]
[Black "Daemering, Katrin"]
[Result "1-0"]
[ECO "B53"]
[WhiteElo "1309"]
[BlackElo "1965"]
[Annotator "TA"]
[PlyCount "115"]
[EventDate "2022.08.10"]
[EventType "tourn"]
[EventCountry "GER"]
[SourceTitle "playchess.com"]
[Source "ChessBase"]
[SourceQuality "1"]
[TimeControl "180+2"]

{[%evp 13,115,0,0,-11,28,29,31,-22,0,-9,0,-21,-11,-40,-14,-2,14,-31,-27,-31,-27,-19,-15,-19,0,-18,4,0,78,77,81,77,262,260,266,256,260,265,273,266,268,258,271,265,260,262,270,232,289,216,265,264,245,262,324,308,308,312,466,471,449,272,411,0,406,0,387,0,709,783,780,734,776,754,759,645,608,585,528,426,491,393,370,389,368,215,294,283,198,134,337,280,1235,1233,1092,1060,1793,1810,5608,5071,3892,3802,2720,2461]} 1. e4 {[%emt 0:00:01]} c5 {[%emt 0:00:01]} 2. Nf3 {[%emt 0:00:01]} d6 {[%emt 0:00:01]} 3. d4 {[%emt 0:00:01]} cxd4 {[%emt 0:00:01]} 4. Qxd4 {[%emt 0:00:01]} Nf6 {[%emt 0:00:01]} 5. Nc3 {[%emt 0:00:02]} a6 {[%emt 0:00:02]} 6. Bg5 {[%emt 0:00:02]} Nc6 {[%emt 0:00:01]} 7. Qd2 {[%emt 0:00:01]} e6 {[%emt 0:00:07]} 8. Nd4 {[%emt 0:00:09] [#] B53: Sicilian: 2...d6: Lines with Qxd4.} Qb6 $146 {[%emt 0:00:12]} ({Predecessor:} 8... Bd7 9. f4 b5 10. a3 h6 11. Bxf6 Qxf6 12. Nxc6 Bxc6 13. Bd3 Qh4+ 14. g3 Qh5 15. Be2 Qc5 {0-1 (33) Rakshitta,R (2190)-Todorovic,G (2373) Belgrade 2021}) 9. Nb3 {[%emt 0:00:10]} Be7 {[%emt 0:00:04]} 10. Bd3 {[%emt 0:00:01]} (10. Bxf6 $14 gxf6 11. f4) 10... Bd7 {[%emt 0:00:04]} 11. Be3 {[%emt 0:00:15]} Qc7 {[%emt 0:00:01]} 12. O-O {[%emt 0:00:04]} b5 {[%emt 0:00:06]} 13. a3 {[%emt 0:00:01]} (13. a4 $5 {[%cal Ra4b5]} b4 14. Ne2 $11) 13... Rc8 {[%emt 0:00:01]} 14. f4 {[%emt 0:00:09]} O-O {[%emt 0:00:06]} 15. Ne2 {[%emt 0:00:10][%cal Bc3e2,Be2g3,Bg3h5][%mdl 32]} Ng4 {[%emt 0:00:06]} 16. Kh1 {[%emt 0:00:09]} Nxe3 {[%emt 0:00:02]} 17. Qxe3 {[%emt 0:00:01]} Bf6 {[%emt 0:00:10]} 18. c3 {[%emt 0:00:10]} e5 {[%emt 0:00:10]} 19. f5 {[%emt 0:00:04]} Rfd8 {[%emt 0:00:04]} 20. Ng3 {[%emt 0:00:05]} h6 {[%emt 0:00:12]} (20... Qa7 $11 21. Qe2 Bg5) 21. Nh5 $1 $16 {[%emt 0:00:02] Black is on the road to losing.} Bg5 {[%emt 0:00:01]} 22. Qg3 {[%emt 0:00:06] And now h4 would win. White is more active.} g6 $2 {[%emt 0:00:23] [#]} (22... Kh7 $16 {was worth a try.}) 23. h4 $1 $18 {[%emt 0:00:01][%cal Bh2h4,Bh4g5,Bg5h6][%mdl 32]} gxh5 {[%emt 0:00:01]} 24. hxg5 {[%emt 0:00:05]} Kh8 {[%emt 0:00:19]} 25. Qh4 {[%emt 0:00:12]} Rg8 {[%emt 0:00:28]} 26. Qxh5 {[%emt 0:00:03][%cal Rh5h6]} Rg7 {[%emt 0:00:02]} 27. Rf3 {[%emt 0:00:27] Hoping for g6.} Rcg8 {[%emt 0:00:07]} 28. Rh3 {[%emt 0:00:07]} ({And not} 28. gxh6 Rxg2 29. Qh4 (29. Qxf7 $2 Qd8 $19) 29... Qa7 $11) 28... Rh7 {[%emt 0:00:02]} 29. gxh6 {[%emt 0:00:35]} Qd8 {[%emt 0:00:14]} 30. Rf1 {[%emt 0:00:14]} Rg5 {[%emt 0:00:02]} 31. Qf3 {[%emt 0:00:04]} Qg8 {[%emt 0:00:01]} 32. Nd2 {[%emt 0:00:04]} f6 {[%emt 0:00:08]} 33. Qf2 {[%emt 0:00:01]} Nd8 {[%emt 0:00:06]} 34. Nf3 {[%emt 0:00:01]} Rg4 {[%emt 0:00:04]} 35. Nh4 {[%emt 0:00:06]} Be8 {[%emt 0:00:01] Prevents Ng6+.} (35... Rxh6 $142 36. Ng6+ Kg7) 36. Be2 {[%emt 0:00:04]} Rg5 {[%emt 0:00:01]} 37. Nf3 {[%emt 0:00:02]} Rg4 {[%emt 0:00:02]} (37... Rh5 $142 38. Qb6 Rxh3+ 39. gxh3 Nb7) 38. Nh4 {[%emt 0:00:02]} Rg5 {[%emt 0:00:03]} 39. Nf3 {[%emt 0:00:09]} Rg4 {[%emt 0:00:01]} 40. Nh4 $2 {[%emt 0:00:02]} ({White should play} 40. Qb6 $18 Nb7 41. Nh4 (41. Qxa6 Nc5 $16)) 40... Rxe4 $2 {[%emt 0:00:05][%mdl 8192]} (40... Rg5 $11) 41. Ng6+ {[%emt 0:00:06]} Bxg6 {[%emt 0:00:02]} 42. fxg6 {[%emt 0:00:01][%mdl 64] Discovered Attack} Qxg6 {[%emt 0:00:03]} 43. Bd3 {[%emt 0:00:00]} Rxh6 {[%emt 0:00:03]} 44. Bxe4 {[%emt 0:00:03]} ({Less strong is} 44. Qf5 Rxh3+ 45. Qxh3+ Kg7 $16) 44... Rxh3+ {[%emt 0:00:01]} 45. gxh3 {[%emt 0:00:01]} Qxe4+ {[%emt 0:00:01]} 46. Qg2 {[%emt 0:00:01]} Qxg2+ 47. Kxg2 {[%emt 0:00:01][%mdl 4096] Endgame KR-KN} Kg7 {[%emt 0:00:03]} 48. Rd1 {[%emt 0:00:02]} Nf7 {[%emt 0:00:02]} 49. Kg3 {[%emt 0:00:01]} (49. a4 $142) 49... Kg6 {[%emt 0:00:01]} 50. h4 {[%emt 0:00:03] Inhibits Ng5.} f5 {[%emt 0:00:01] [#]} 51. b3 {[%emt 0:00:03]} (51. a4 $1 $18 {[%cal Ra4b5]}) 51... Kf6 $2 {[%emt 0:00:01]} (51... f4+ $16 52. Kg4 Nh6+ 53. Kf3 Nf5) 52. c4 {aiming for cxb5.} Ke6 $2 {[%emt 0:00:03]} (52... f4+ 53. Kf3 bxc4) 53. cxb5 {[%emt 0:00:04] White is clearly winning.} axb5 {[%emt 0:00:01]} 54. a4 {[%emt 0:00:00]} bxa4 {[%emt 0:00:01]} 55. bxa4 {[%emt 0:00:01][%cal Bb3a4,Ba4a5,Ba5a6][%mdl 32]} Nd8 {[%emt 0:00:01]} 56. a5 {[%emt 0:00:01] a6 is the strong threat.} Nc6 {[%emt 0:00:02]} 57. a6 {[%emt 0:00:01]} Na7 {[%emt 0:00:02]} 58. Rb1 {[%emt 0:00:01] Weighted Error Value: White=0.50/Black=0.33} 1-0

[Event "German-ch Blitz Women 2022"]
[Site "Magdeburg"]
[Date "2022.08.13"]
[Round "9.12"]
[White "Zhou, Lepu Coco"]
[Black "Muetsch, Annmarie"]
[Result "0-1"]
[ECO "C41"]
[WhiteElo "1986"]
[BlackElo "2249"]
[Annotator "TA"]
[PlyCount "88"]
[EventDate "2022.08.10"]
[EventType "tourn"]
[EventCountry "GER"]
[SourceTitle "playchess.com"]
[Source "ChessBase"]
[SourceQuality "1"]
[TimeControl "180+2"]

{[%evp 10,88,40,33,42,24,45,41,47,25,33,18,44,0,60,56,79,20,94,94,74,75,56,6,127,73,70,74,54,0,0,-14,-33,0,36,36,33,43,36,-8,-18,-16,1,-59,-42,-279,-279,-269,-170,-410,-428,-426,-356,-433,-425,-412,-410,-454,-445,-429,-406,-341,-252,-718,-714,-1677,-1613,-1406,-682,-1640,-1174,-1937,-1850,-1607,-1570,-12839,-12839,-12839,-12839,-12840,-11573]} 1. e4 {[%emt 0:00:02]} d6 {[%emt 0:00:00]} 2. d4 {[%emt 0:00:01]} Nf6 {[%emt 0:00:01]} 3. Nc3 {[%emt 0:00:02]} e5 {[%emt 0:00:00]} 4. Nf3 {[%emt 0:00:01]} Nbd7 {[%emt 0:00:01]} 5. Bc4 {[%emt 0:00:02]} Be7 {[%emt 0:00:01]} 6. a4 {[%emt 0:00:03]} c6 {[%emt 0:00:02] C41: Philidor Defence.} 7. a5 {[%emt 0:00:02]} Qc7 {[%emt 0:00:03]} 8. O-O {[%emt 0:00:07]} h6 {[%emt 0:00:01] White is slightly better.} 9. Qe2 {[%emt 0:00:05]} Nf8 {[%emt 0:00:04]} 10. dxe5 {[%emt 0:00:08]} dxe5 {[%emt 0:00:02]} 11. Rd1 {[%emt 0:00:05] [#]} Bg4 $146 {[%emt 0:00:11]} (11... Ne6 $11) ({Predecessor:} 11... Be6 12. h3 Bxc4 13. Qxc4 Ne6 14. Be3 O-O 15. Nh4 Rfd8 16. Nf5 Bf8 17. Qe2 g6 18. Nxh6+ {1-0 (37) Almeida Junior,A (2174)-Fajdetic,H (2151) Chess.com INT 2020}) 12. h3 $14 {[%emt 0:00:03]} Bh5 {[%emt 0:00:02]} 13. Be3 {[%emt 0:00:10]} (13. g4 $16 Bg6 14. Nh4) 13... g5 {[%emt 0:00:21]} (13... Ng6 $1 $11 {keeps the balance.}) 14. g4 $16 {[%emt 0:00:15]} Bg6 {[%emt 0:00:07]} 15. a6 {[%emt 0:00:21] Hoping for axb7.} b6 {[%emt 0:00:13] [#]} 16. Bb3 {[%emt 0:00:36]} (16. Nxe5 $1 $14 Qxe5 17. Bd4) 16... b5 {[%emt 0:00:26] [#]} (16... Rc8 $11 {remains equal.}) 17. Nxb5 $1 {[%emt 0:00:55][%mdl 512]} cxb5 {[%emt 0:00:09]} 18. Qxb5+ {[%emt 0:00:02]} N8d7 {[%emt 0:00:11]} 19. Ba4 {[%emt 0:00:03]} (19. Qb7 $1 $14 Qxb7 20. axb7) 19... O-O $11 {[%emt 0:00:18]} 20. Rxd7 {[%emt 0:00:27]} Nxd7 {[%emt 0:00:02]} ({Don't play} 20... Qxd7 21. Qxd7 Nxd7 22. Bxd7 $16) 21. Qxd7 {[%emt 0:00:02]} Qxd7 {[%emt 0:00:02]} 22. Bxd7 {[%emt 0:00:01]} Bxe4 {[%emt 0:00:10]} 23. Nxe5 {[%emt 0:00:03] aiming for Bc6.} Bf6 {[%emt 0:00:08]} 24. Nd3 {[%emt 0:00:05]} Rfd8 $36 {[%emt 0:00:17][%mdl 2048] Threatens to win with ...Bxd3. Black is more active.} 25. Bb5 {[%emt 0:00:01]} Bd4 {[%emt 0:00:06]} 26. Bxd4 {[%emt 0:00:06]} ({Better is} 26. Ra4 $11 Bxe3 27. Rxe4) 26... Rxd4 $15 {[%emt 0:00:01]} 27. Ra4 $2 {[%emt 0:00:03] This move loses the game for White.} (27. b3 $1 $15) 27... Rxa4 $19 {[%emt 0:00:07]} 28. Bxa4 {[%emt 0:00:01][%mdl 4096] Endgame KRB-KBN} Rb8 {[%emt 0:00:06]} 29. b3 $2 {[%emt 0:00:02]} (29. Nc5 {only move.} Rb4 30. c3) 29... Bxd3 {[%emt 0:00:19]} 30. cxd3 {[%emt 0:00:01] KR-KB} Rb6 {[%emt 0:00:01]} 31. Kf1 {[%emt 0:00:03]} Kg7 {[%emt 0:00:04]} 32. Ke2 {[%emt 0:00:02]} Kf6 {[%emt 0:00:03]} 33. d4 {[%emt 0:00:02]} Rxa6 {[%emt 0:00:03]} 34. Ke3 {[%emt 0:00:03]} Rb6 {[%emt 0:00:09]} 35. Ke4 {[%emt 0:00:03]} Ke6 {[%emt 0:00:05]} 36. d5+ $2 {[%emt 0:00:01]} (36. Bc6) 36... Kd6 {[%emt 0:00:03] Black is clearly winning.} 37. Be8 {[%emt 0:00:02]} Rb4+ {[%emt 0:00:03]} 38. Kd3 {[%emt 0:00:02]} f6 {[%emt 0:00:09]} (38... Rxb3+ $142 39. Ke4 Rxh3) 39. Kc2 {[%emt 0:00:02]} Kxd5 {[%emt 0:00:01]} 40. Bf7+ {[%emt 0:00:01]} Ke4 {[%emt 0:00:02] ...Kf3 is the strong threat.} 41. Kc3 {[%emt 0:00:01]} a5 {[%emt 0:00:01] Strongly threatening ...Kf3.} 42. Bg6+ {[%emt 0:00:02]} Kf3 {[%emt 0:00:01]} 43. Bf5 {[%emt 0:00:01]} Kxf2 {[%emt 0:00:01]} 44. Bd3 {[%emt 0:00:02]} Kg2 {[%emt 0:00:02] Weighted Error Value: White=0.99/Black=0.31} 0-1

[Event "German-ch Blitz Women 2022"]
[Site "Magdeburg"]
[Date "2022.08.13"]
[Round "10.1"]
[White "Paehtz, Elisabeth"]
[Black "Muetsch, Annmarie"]
[Result "1/2-1/2"]
[ECO "C75"]
[WhiteElo "2484"]
[BlackElo "2249"]
[Annotator "TA"]
[PlyCount "138"]
[EventDate "2022.08.10"]
[EventType "tourn"]
[EventCountry "GER"]
[SourceTitle "playchess.com"]
[Source "ChessBase"]
[SourceQuality "1"]
[TimeControl "180+2"]

{[%evp 15,138,46,52,27,26,27,29,21,18,24,21,27,32,19,20,34,36,19,29,0,28,23,28,12,52,11,4,0,0,-15,4,2,16,-2,0,0,0,0,0,-27,0,-30,0,-27,-6,-81,0,0,0,0,0,-94,0,0,0,-8,35,-11,-11,-17,0,-6,-23,-87,-70,-100,0,-349,-354,-423,-417,-421,-421,-441,-441,-397,-396,-396,-389,-389,-377,-431,-416,-438,-415,-560,-551,-619,-538,-518,-484,-760,-753,-773,-769,-5011,-4133,-7092,-3143,-29945,-3022,-4694,-1722,-29973,-29965,-29981,-29982,-6099,-654,-737,-647,-647,-243,-216,-193,-181,-8,-8,-8,-8,0,0,0,-12,0]} 1. e4 {[%emt 0:00:01]} e5 {[%emt 0:00:01]} 2. Nf3 {[%emt 0:00:01]} Nc6 {[%emt 0:00:00]} 3. Bb5 {[%emt 0:00:03][%cal Bf1b5,Bb5a4,Ba4b3][%mdl 32]} a6 {[%emt 0:00:01]} 4. Ba4 {[%emt 0:00:00]} d6 {[%emt 0:00:01]} 5. c3 {[%emt 0:00:06]} Bd7 {[%emt 0:00:03]} 6. O-O {[%emt 0:00:02]} Nf6 {[%emt 0:00:01]} 7. d4 {[%emt 0:00:03]} Be7 {[%emt 0:00:07]} 8. Re1 {[%emt 0:00:09]} O-O {[%emt 0:00:14]} 9. Bb3 {[%emt 0:00:01] C87: Closed Ruy Lopez: Steinitz-type lines after 6 Re1 d6.} Bg4 {[%emt 0:00:11]} 10. d5 {[%emt 0:00:08]} Nb8 {[%emt 0:00:06] [#]} 11. h3 $146 {[%emt 0:00:01] White has an edge.} ({Predecessor:} 11. Nbd2 Nbd7 12. Nf1 Nc5 13. Bc2 a5 14. Ng3 Nh5 15. h3 Bxf3 16. Qxf3 Nxg3 17. Qxg3 {1-0 (67) Mendieta,K (1942)-Zelaya Aguilera,C (1738) Managua 2017}) 11... Bh5 {[%emt 0:00:02]} 12. Nbd2 {[%emt 0:00:03][%cal Bb1d2,Bd2f1,Bf1g3][%mdl 32]} Nbd7 {[%emt 0:00:12]} 13. Nf1 {[%emt 0:00:02]} Nc5 {[%emt 0:00:08]} 14. Bc2 {[%emt 0:00:01]} a5 {[%emt 0:00:02]} 15. Ng3 {[%emt 0:00:24]} Bg6 {[%emt 0:00:00]} 16. b4 {[%emt 0:00:12]} Ncd7 {[%emt 0:00:12]} 17. a3 {[%emt 0:00:05]} c6 {[%emt 0:00:17]} 18. dxc6 {[%emt 0:00:09]} bxc6 {[%emt 0:00:01]} 19. Bb2 {[%emt 0:00:10]} Nb6 {[%emt 0:00:06]} 20. Qe2 {[%emt 0:00:03]} Nh5 {[%emt 0:00:16]} 21. Nxh5 {[%emt 0:00:11]} Bxh5 {[%emt 0:00:01]} 22. Bb3 {[%emt 0:00:01]} Kh8 {[%emt 0:00:19]} 23. Qe3 {[%emt 0:00:06]} h6 {[%emt 0:00:35]} 24. Rad1 {[%emt 0:00:03]} Qc7 {[%emt 0:00:03]} 25. g4 {[%emt 0:00:12]} Bg6 {[%emt 0:00:01]} 26. c4 {[%emt 0:00:03]} axb4 {[%emt 0:00:07]} 27. axb4 {[%emt 0:00:01]} (27. c5 $5 {[%cal Rc5d6]} Nd7 28. axb4 $11) 27... Nd7 {[%emt 0:00:13] Against c5} (27... Na4 $5 {[%cal Ra4b2]} 28. Bc1 Nb6 $11) 28. Ra1 {[%emt 0:00:09]} Nf6 {[%emt 0:00:04]} 29. Nd2 {[%emt 0:00:03]} Nh7 {[%emt 0:00:05]} 30. Qd3 {[%emt 0:00:10]} (30. c5 $11) 30... Bg5 {[%emt 0:00:02]} (30... Ng5 $17) 31. Nf3 $11 {[%emt 0:00:02]} Bf4 {[%emt 0:00:03]} 32. Rxa8 {[%emt 0:00:05]} Rxa8 {[%emt 0:00:01]} 33. Bc1 {[%emt 0:00:01]} (33. Nh4 $11) 33... Qe7 {[%emt 0:00:04]} (33... Bxc1 $17 34. Rxc1 Nf6) 34. Bxf4 {[%emt 0:00:04]} exf4 {[%emt 0:00:01]} 35. Qd4 {[%emt 0:00:08]} Re8 {[%emt 0:00:07]} 36. e5 {[%emt 0:00:04]} (36. Ba4 $14 c5 37. Qd1) 36... Ng5 {[%emt 0:00:01]} 37. Nxg5 {[%emt 0:00:11] Threatens to win with Nf3.} hxg5 {[%emt 0:00:01]} 38. e6 {[%emt 0:00:12]} fxe6 {[%emt 0:00:04]} 39. c5 {[%emt 0:00:01]} (39. Ba4 $1 $11) 39... d5 $17 {[%emt 0:00:07]} 40. Qe5 {[%emt 0:00:20]} Qf6 {[%emt 0:00:01]} (40... Kh7 $17 {And now ...Qb7 would win.} 41. Ra1 Qf6 42. Qxf6 gxf6) 41. b5 $2 {[%emt 0:00:04][%mdl 8192]} (41. Ba4 $11 Qxe5 42. Rxe5) 41... cxb5 $19 {[%emt 0:00:07]} 42. c6 {[%emt 0:00:01]} Qxe5 {[%emt 0:00:03]} 43. Rxe5 {[%emt 0:00:01][%mdl 4096] Endgame KRB-KRB} Bf7 {[%emt 0:00:03]} 44. Re1 {[%emt 0:00:23]} Rc8 45. Rc1 Rc7 {[%emt 0:00:03]} 46. Rc5 {[%emt 0:00:02]} Be8 {[%emt 0:00:01]} 47. Rxb5 {[%emt 0:00:01] Black must now prevent Rb8.} Bxc6 {[%emt 0:00:03]} 48. Rb8+ {[%emt 0:00:01]} Kh7 {[%emt 0:00:01]} 49. Bc2+ {[%emt 0:00:01]} g6 {[%emt 0:00:01]} 50. Rf8 {[%emt 0:00:02]} Kg7 {[%emt 0:00:02]} 51. Rd8 {[%emt 0:00:02]} Bd7 {[%emt 0:00:02]} 52. Bd3 {[%emt 0:00:02]} e5 {[%emt 0:00:01] aiming for ...e4.} 53. Rb8 {[%emt 0:00:07]} (53. f3 $142 Be6 54. Rd6) 53... e4 {[%emt 0:00:01]} 54. Bf1 {[%emt 0:00:03]} d4 {[%emt 0:00:01][%cal Bd5d4,Bd4d3][%mdl 32] ...d3 is the strong threat.} 55. Rb6 {[%emt 0:00:02]} d3 {[%emt 0:00:02]} 56. Rd6 {[%emt 0:00:01]} Bb5 {[%emt 0:00:02]} 57. Rd5 {[%emt 0:00:01] [#]} Ba6 {[%emt 0:00:02]} (57... Rc1 $142 $1 58. Rxb5 d2 59. Rb7+ Kf6 60. Rd7 d1=Q 61. Rxd1 Rxd1 62. f3 e3 63. Kg2 Rd2+ 64. Kg1 e2 65. Kf2 exf1=Q+ 66. Kxf1 Ke5 67. Ke1 Rh2 68. h4 gxh4 69. Kf1 Rb2 70. g5 Kd4 71. Kg1 Ke3 72. Kf1 h3 73. Kg1 Kxf3 74. Kh1 Kg3 75. Kg1 Rb1#) 58. Rd6 {[%emt 0:00:01] [#]} Bb7 {[%emt 0:00:05]} (58... Rc1 $142 $1 59. Rxa6 d2 60. Ra7+ Kh6 61. Rd7 d1=Q 62. Rxd1 Rxd1 63. f3 e3 64. Kg2 Rd2+ 65. Kh1 e2 66. Bxe2 Rxe2 67. Kg1 Ra2 68. Kh1 Kg7 69. Kg1 Kf6 70. Kf1 Ke5 71. Ke1 Kd4 72. Kd1 Ke3 73. Kc1 Rd2 74. Kb1 Kxf3 75. h4 Ke3 76. h5 f3 77. h6 f2 78. h7 f1=Q#) 59. Rd4 {[%emt 0:00:02]} Kf6 {[%emt 0:00:02]} 60. f3 {[%emt 0:00:01]} Ke5 {[%emt 0:00:07]} 61. Rd8 {[%emt 0:00:01]} exf3 {[%emt 0:00:03]} (61... e3 $142 62. Bxd3 Bxf3 63. Re8+ Kf6 64. Bb5 Rc1+ 65. Bf1 e2 66. Rxe2 Bxe2 67. Kf2 Bxf1 68. h4 gxh4 69. g5+ Kxg5 70. Kf3 Bd3 71. Kg2 h3+ 72. Kh2 Be4 73. Kxh3 Rh1#) 62. Bxd3 {[%emt 0:00:01]} Rc6 {[%emt 0:00:04]} 63. Re8+ {[%emt 0:00:04]} Kf6 $2 {[%emt 0:00:02]} (63... Kd4 {( -> ...Rc1+)} 64. Rb8 Rb6 65. Bxg6 Kc3) 64. Rf8+ {[%emt 0:00:03]} Kg7 {[%emt 0:00:01]} 65. Rd8 {[%emt 0:00:01] Strongly threatening Rd7+.} Rf6 $2 {[%emt 0:00:03]} ({Better is} 65... Rb6 $19 {Hoping for ...Kf6.} 66. Rb8 Rb2) 66. Rd7+ $11 {[%emt 0:00:02] The position is equal.} Rf7 {[%emt 0:00:01]} 67. Rd6 {[%emt 0:00:01]} Rf6 {[%emt 0:00:05]} 68. Rd7+ {[%emt 0:00:00]} Rf7 {[%emt 0:00:01]} 69. Rd6 {[%emt 0:00:01]} Rf6 {[%emt 0:00:04] Weighted Error Value: White=0.56/Black=0.14 (very precise)} 1/2-1/2